Cogmind - Beta 9.4 @@@ ROGUE MODE // 2020.03.14 @ 12:26:37 Player: cptwinky Result: Escaped! Performance ------------- Evolutions (9) 4500 Regions Visited (16) 3200 Robots Destroyed (105) 525 Value Destroyed (2549) 2549 Prototype IDs (31) 620 Alien Tech Used (0) 0 Bonus (18546) 18546 TOTAL SCORE: 29940 Bonus ------- Devolution 7500 High Alert Combat Kills 52 Follower Combat Kills 14 Entered Garrisons 200 Used RIF Installer 500 Aligned with FarCom 300 Win 3000 Challenge Win 7000 Friendly Fire -20 Cogmind --------- Core Integrity 747/800 Matter 230/300 Energy 168/170 System Corruption 0% Temperature Cool (2) Movement Flying (40) Location To Epsilon Eridani Parts ------- > --- POWER (2) -------- Micro Fission Core > --- PROPULSION (1) --- Q-thruster > --- UTILITY (7) ------ Improved Transmission Jammer Improved Propulsion Shielding Advanced Hacking Suite Advanced Hacking Suite Improved System Shield Relay Coupler [NC] (21) > --- WEAPON (1) ------- (None) > --- INVENTORY (4) ---- Combat Airjet Field Propulsion Drive Remote Datajack Power Sword Peak State ------------ > --- POWER ------------ Micro Fission Core > --- PROPULSION ------- Combat Airjet > --- UTILITY ---------- Medium Storage Unit Improved Transmission Jammer Improved Propulsion Shielding Advanced Hacking Suite Advanced Hacking Suite Advanced Hacking Suite Advanced Hacking Suite Improved System Shield > --- WEAPON ----------- Mini Grenade Launcher Power Sword > --- INVENTORY -------- Micro Fission Core Combat Airjet Nuclear Pulse Thruster Field Propulsion Drive Relay Coupler [NC] Relay Coupler [NC] Remote Datajack Power Sword [Rating: 59] Favorites ----------- Power Heavy Ion Engine Engine Heavy Ion Engine Power Core Micro Fission Core Propulsion Wheel Treads Light Treads Wheel Wheel Hover Unit Combat Airjet Flight Unit Q-thruster Utility Improved Targeting Computer Device Improved Heat Sink Storage High-capacity Storage Unit Processor Improved Targeting Computer Hackware Advanced Hacking Suite Protection Improved Propulsion Shielding Weapon Improved Assault Rifle Energy Gun EM Pulse Gun Ballistic Gun Improved Assault Rifle Launcher Mini Grenade Launcher Special Weapon Remote Datajack Slashing Weapon Power Sword Special Melee Weapon Improved Datajack Build | -11 -10 -10 -9 -9 -9 -8 -8 -8 -8 -7 -6 -5 -4 -3 -2 -1 ------- Run | Scr Mat Min Mat Min Exi Min Mat Gar Mat Fac Fac Fac Fac Res Res Acc Slots Evolved -9 | . . . -1 . . . -1 . . -1 -1 -1 -1 -1 -1 -1 Power -1 | . . . . . . . . . . . . . . -1 . . Propulsion -3 | . . . -1 . . . . . . -1 -1 . . . . . Utility -2 | . . . . . . . . . . . . -1 . . . -1 Weapon -3 | . . . . . . . -1 . . . . . -1 . -1 . Parts Attached 128 | 17 5 5 29 1 2 9 12 18 5 3 7 4 3 2 . 6 Power 20 | 3 . 1 5 . 1 . 2 3 1 1 . 1 . 1 . 1 Engine 15 | 3 . 1 5 . 1 . 1 2 1 1 . . . . . . Core 5 | . . . . . . . 1 1 . . . 1 . 1 . 1 Reactor . | . . . . . . . . . . . . . . . . . Propulsion 16 | 4 . 1 5 . . . 1 3 . . . . . . . 2 Treads 5 | 2 . . 3 . . . . . . . . . . . . . Leg . | . . . . . . . . . . . . . . . . . Wheel 5 | 2 . 1 1 . . . 1 . . . . . . . . . Hover 4 | . . . . . . . . 3 . . . . . . . 1 Flight 2 | . . . 1 . . . . . . . . . . . . 1 Utility 52 | 7 4 2 8 1 1 2 3 6 4 2 5 3 3 . . 1 Device 13 | 2 2 1 3 . . . . 1 1 1 2 . . . . . Storage 5 | 2 2 . . . . . . 1 . . . . . . . . Processor 9 | 3 . . 3 . . 1 . . 1 . 1 . . . . . Hackware 11 | . . . . . . . . 1 1 1 2 3 2 . . 1 Protection 14 | . . 1 2 1 1 1 3 3 1 . . . 1 . . . Artifact . | . . . . . . . . . . . . . . . . . Weapon 40 | 3 1 1 11 . . 7 6 6 . . 2 . . 1 . 2 Energy Gun 5 | 1 . 1 3 . . . . . . . . . . . . . Energy Cannon . | . . . . . . . . . . . . . . . . . Ballistic Gun 20 | 2 1 . 7 . . 5 3 2 . . . . . . . . Ballistic Cannon . | . . . . . . . . . . . . . . . . . Launcher 8 | . . . 1 . . 2 3 2 . . . . . . . . Special Weapon 1 | . . . . . . . . . . . . . . . . 1 Impact Weapon . | . . . . . . . . . . . . . . . . . Slashing Weapon 5 | . . . . . . . . 2 . . 1 . . 1 . 1 Piercing Weapon . | . . . . . . . . . . . . . . . . . Special Melee Weapon 1 | . . . . . . . . . . . 1 . . . . . Unidentified Prototypes 3 | . . . 3 . . . . . . . . . . . . . Parts Lost 12 | . 2 2 2 . . . . 1 . . 1 . 1 1 . 2 Power 2 | . 1 . . . . . . 1 . . . . . . . . Propulsion 2 | . . 1 1 . . . . . . . . . . . . . Utility 5 | . 1 . 1 . . . . . . . 1 . 1 . . 1 Weapon 3 | . . 1 . . . . . . . . . . . 1 . 1 Highest Loss Streak 4 | . 2 4 1 . . . . 1 . . 1 . 1 1 . 1 Average Slot Usage (%) 90 | . 96 97 99 100 78 98 98 99 93 86 79 80 84 87 91 81 Engine 8 | . 14 14 15 15 15 15 12 11 7 5 6 1 . . . . Core 2 | . . . . . . . 2 4 5 5 . 4 7 7 8 9 Treads 2 | . 10 10 5 5 5 5 5 3 . . . . . . . . Wheel 5 | . 10 10 9 10 10 10 11 6 . . . . . . . . Hover 3 | . . . . . . . . 5 16 11 6 6 7 7 8 1 Device 11 | . 16 15 11 10 10 10 11 11 18 11 10 13 9 7 8 9 Storage 8 | . 10 10 10 10 10 10 11 10 5 5 6 6 7 7 8 . Processor 8 | . 15 15 14 15 15 15 16 15 1 . 1 . . . . . Hackware 13 | . . . . . . . . . 9 15 28 26 31 38 41 37 Protection 8 | . . 3 8 10 10 10 10 11 11 11 6 6 6 7 8 9 Ballistic Gun 8 | . 14 10 16 21 . 18 15 12 5 5 . . . . . . Launcher 2 | . . . . . . . . 1 5 5 6 6 7 2 . . Slashing Weapon 3 | . . . . . . . . 1 5 5 6 6 7 7 8 7 Naked Turns . | . . . . . . . . . . . . . . . . . Heaviest Build 110 | 26 86 87 109 108 108 109 110 106 54 54 44 22 22 20 19 19 Greatest Support 66 | 32 32 32 26 20 20 20 22 66 66 44 22 22 22 22 22 22 Greatest Overweight (x) 9 | . 2 3 9 5 5 5 5 6 . 1 1 . . . . . Average Overweight (x) 1 | . 1 2 4 5 4 4 4 3 . . . . . . . . Largest Inventory Capacity 20 | 8 20 20 20 20 20 20 20 20 8 8 8 8 8 8 8 8 Average Capacity 13 | 7 15 20 20 20 20 20 20 18 8 8 8 8 8 8 8 4 Most Carried 20 | . 11 20 20 20 20 20 20 20 8 8 8 8 8 8 8 8 Average Carried 12 | . 5 11 19 19 19 17 19 16 8 7 7 7 7 7 8 4 Final Capacity 20 | 8 20 20 20 20 20 20 20 8 8 8 8 8 8 8 8 4 Final Carried 20 | . 11 19 19 20 20 19 20 8 8 8 8 8 8 8 8 4 Class Distribution -------------------- 29% | Hacker-Mutant 24% | Hauler-Gunner 11% | Scavenger-Skirmisher 10% | Wizard-Mutant 8% | Hauler-Mutant 6% | Scavenger-Gunner 6% | Scavenger-Mutant Dominant Class ---------------- Scavenger-Skirmisher | -10/Materials Scavenger-Skirmisher | -10/Mines Scavenger-Gunner | -9/Materials Hauler-Gunner | -9/Mines Hauler-Mutant | -9/Exiles Hauler-Gunner | -8/Mines Hauler-Gunner | -8/Materials Hauler-Mutant | -8/Garrison Scavenger-Mutant | -8/Materials Hacker-Mutant | -7/Factory Hacker-Mutant | -6/Factory Hacker-Mutant | -5/Factory Wizard-Mutant | -4/Factory Wizard-Mutant | -3/Research Wizard-Mutant | -2/Research Hacker-Mutant | -1/Access Resources | -11 -10 -10 -9 -9 -9 -8 -8 -8 -8 -7 -6 -5 -4 -3 -2 -1 ----------- Run | Scr Mat Min Mat Min Exi Min Mat Gar Mat Fac Fac Fac Fac Res Res Acc Matter Collected 2654 | 399 238 99 599 46 . 224 408 367 56 21 84 . 65 48 . . Remotely 217 | . 128 89 . . . . . . . . . . . . . . Salvage Created 3309 | 240 425 91 1016 15 . 215 437 402 71 47 129 . 95 126 . . Parts 253 | 21 20 4 64 1 . 20 37 44 8 8 9 . 5 12 . . Haulers Intercepted 7 | . 1 . 5 . . . 1 . . . . . . . . . Recyclers Shooed 1 | . . . 1 . . . . . . . . . . . . . Parts Field Recycled . | . . . . . . . . . . . . . . . . . Retrieved Matter . | . . . . . . . . . . . . . . . . . Parts Self-Destructed . | . . . . . . . . . . . . . . . . . Prevented . | . . . . . . . . . . . . . . . . . Kills | -11 -10 -10 -9 -9 -9 -8 -8 -8 -8 -7 -6 -5 -4 -3 -2 -1 ------- Run | Scr Mat Min Mat Min Exi Min Mat Gar Mat Fac Fac Fac Fac Res Res Acc Combat Hostiles Destroyed 74 | . 7 2 16 1 . 11 15 17 1 . 1 . 1 2 . . Melee 5 | . . . . . . . . . 1 . 1 . 1 2 . . Guns 39 | . 7 1 13 1 . 4 6 7 . . . . . . . . AOE 30 | . . 1 3 . . 7 9 10 . . . . . . . . Classes Destroyed 13 | 2 4 . 4 . . 1 . 1 . . . . 1 . . . Worker 2 | . . . 1 . . . . . . . 1 . . . . . Tunneler 7 | 7 . . . . . . . . . . . . . . . . Hauler 7 | . 1 . 5 . . . 1 . . . . . . . . . Recycler 3 | 1 . . 2 . . . . . . . . . . . . . Operator 5 | . 1 . 1 . . . 1 . . 1 . . 1 . . . Watcher 7 | . 1 . 2 . . . 1 . 1 1 1 . . . . . Swarmer 40 | . . . 7 1 . 8 10 14 . . . . . . . . Grunt 16 | . 7 2 4 . . 1 2 . . . . . . . . . Brawler 2 | . . . 1 . . 1 . . . . . . . . . . Duelist 1 | . . . . . . 1 . . . . . . . . . . Sentry 11 | . . . 4 . . . 3 2 1 . 1 . . . . . Specialist 1 | . . . . . . . . 1 . . . . . . . . Programmer 3 | . . . . . . . . . . . . . 1 2 . . Best Kill Streak 8 | 5 2 2 5 1 . 4 6 8 2 2 1 . 1 2 . . Combat Bots Only 8 | . 2 2 4 1 . 4 4 8 1 . 1 . 1 2 . . Max Kills in Single Turn 4 | 1 2 2 3 1 . 4 4 3 1 1 1 . 1 1 . . Gunslinging 1 | . 1 . . . . . . . . . . . . . . . Exploded 4 | . . 1 3 . . 4 3 3 . . . . . . . . Melee 1 | . . . . . . . . . 1 . 1 . 1 1 . . Uniques/NPCs Destroyed . | . . . . . . . . . . . . . . . . . Combat | -11 -10 -10 -9 -9 -9 -8 -8 -8 -8 -7 -6 -5 -4 -3 -2 -1 -------- Run | Scr Mat Min Mat Min Exi Min Mat Gar Mat Fac Fac Fac Fac Res Res Acc Damage Taken 2715 | . 253 167 443 17 . 208 330 321 132 . 155 . 203 366 . 120 Core 628 | . . 11 25 . . 6 58 50 14 . 86 . 104 221 . 53 Absorbed by Shields 39 | . . . . . . . . 39 . . . . . . . . Core Remaining (%) 92 | 100 . 98 . . . 96 . . 84 100 89 100 87 72 100 93 Volleys Fired 145 | 14 16 3 46 1 . 15 25 22 2 . . . . . . 1 Largest 4 | 3 4 4 4 4 . 4 3 3 2 . . . . . . 1 Hottest 150 | 80 100 100 150 92 . 92 69 69 53 . . . . . . 30 Shots Fired 459 | 42 64 11 170 4 . 46 67 50 4 . . . . . . 1 Gun 442 | 42 64 11 169 4 . 43 63 44 2 . . . . . . . Cannon . | . . . . . . . . . . . . . . . . . Launcher 16 | . . . 1 . . 3 4 6 2 . . . . . . . Special 1 | . . . . . . . . . . . . . . . . 1 Kinetic 376 | 28 48 8 136 4 . 43 63 44 2 . . . . . . . Thermal 14 | . . . 14 . . . . . . . . . . . . . Explosive 16 | . . . 1 . . 3 4 6 2 . . . . . . . Electromagnetic 52 | 14 16 3 19 . . . . . . . . . . . . . Robot Hit Streak 23 | 6 15 9 23 4 . 20 14 21 10 . . . . . . . Robot Miss Streak 3 | 3 2 1 3 . . 1 2 1 1 . . . . . . 1 Penetration Max . | . . . . . . . . . . . . . . . . . Secondary Targets 8 | . 2 . 4 . . 1 . 1 . . . . . . . . Max Gunslinging Chain 1 | . 1 . 1 . . 1 . 1 . . . . . . . . Shots Hit Robots 352 | 24 42 7 112 2 . 34 46 45 5 3 8 . 7 14 . 3 Core Hits 161 | 11 19 4 41 1 . 15 26 27 3 2 4 . 3 5 . . Critical Hits 6 | . . . 2 1 . . . . 1 . 1 . . 1 . . Critical Kills 1 | . . . . . . . . . 1 . . . . . . . Critical Parts Destroyed 5 | . . . 2 1 . . . . . . 1 . . 1 . . Melee Attacks 141 | . . . . . . . . 8 2 6 27 10 22 36 3 27 Impact . | . . . . . . . . . . . . . . . . . Slashing 140 | . . . . . . . . 8 2 6 26 10 22 36 3 27 Piercing . | . . . . . . . . . . . . . . . . . Sneak Attacks 5 | . . . . . . . . . . 1 3 . 1 . . . Combat Hostiles . | . . . . . . . . . . . . . . . . . Follow-up Attacks . | . . . . . . . . . . . . . . . . . Damage Inflicted 8271 | 275 563 160 1463 34 . 752 1180 2068 130 192 379 . 399 542 . 134 Guns 3740 | 275 517 93 1289 34 . 427 589 484 32 . . . . . . . Cannons . | . . . . . . . . . . . . . . . . . Explosions 2241 | . 46 67 174 . . 325 591 1010 28 . . . . . . . Melee 2290 | . . . . . . . . 574 70 192 379 . 399 542 . 134 Ramming . | . . . . . . . . . . . . . . . . . Kinetic 3142 | 223 362 50 941 34 . 427 589 484 32 . . . . . . . Thermal 191 | . 46 67 78 . . . . . . . . . . . . . Explosive 2128 | . . . 174 . . 325 591 1010 28 . . . . . . . Electromagnetic 520 | 52 155 43 270 . . . . . . . . . . . . . Impact . | . . . . . . . . . . . . . . . . . Slashing 2290 | . . . . . . . . 574 70 192 379 . 399 542 . 134 Piercing . | . . . . . . . . . . . . . . . . . Highest Corruption 5 | . . 1 5 5 5 5 1 1 1 . . . 4 4 . . Average Corruption 2 | . . 1 5 5 5 5 1 1 1 . . . 3 3 . . Corruption Purged . | . . . . . . . . . . . . . . . . . Effects 69 | . . . 16 6 8 13 4 4 . . . . 9 9 . . Message Errors 18 | . . . 2 1 4 4 3 3 . . . . . 1 . . Matter Fused 12 | . . . 6 . 1 1 . . . . . . 3 1 . . Heat Flow Errors 13 | . . . 1 2 2 2 . . . . . . 3 3 . . Energy Discharges 10 | . . . 2 2 1 1 1 1 . . . . 1 1 . . Parts Rejected 2 | . . . . . . . . . . . . . 1 1 . . Data Loss (minor) 3 | . . . 1 1 . . . . . . . . . 1 . . Data Loss (major) 2 | . . . 1 . . 1 . . . . . . . . . . Misfires 1 | . . . . . . 1 . . . . . . . . . . Targeting Errors 7 | . . . 2 . . 3 . . . . . . 1 1 . . Weapon Failures 1 | . . . 1 . . . . . . . . . . . . . Overload Shots . | . . . . . . . . . . . . . . . . . Overflow Damage 404 | . . 5 . . . . 18 187 . 18 69 . 85 20 . 2 Projectiles . | . . . . . . . . . . . . . . . . . Explosions 94 | . . 5 . . . . 18 71 . . . . . . . . Melee 310 | . . . . . . . . 116 . 18 69 . 85 20 . 2 Knockbacks . | . . . . . . . . . . . . . . . . . Impact . | . . . . . . . . . . . . . . . . . Kinetic . | . . . . . . . . . . . . . . . . . Secondary . | . . . . . . . . . . . . . . . . . Self-Inflicted Damage 147 | . 22 46 . . . 23 31 . 25 . . . . . . . Shots 6 | . 1 1 . . . 1 2 . 1 . . . . . . . Rammed . | . . . . . . . . . . . . . . . . . Targets Rammed . | . . . . . . . . . . . . . . . . . Kicked . | . . . . . . . . . . . . . . . . . Crushed . | . . . . . . . . . . . . . . . . . Highest Temperature 284 | 208 258 48 275 219 237 107 . . . . 6 . 221 284 . 21 Average Temperature 94 | 99 82 23 89 106 109 56 . . . . 5 . 113 127 . 9 Received Heat Transfer 623 | . 111 44 165 . . 18 90 48 36 . 72 . . 30 . 9 Siege Activations . | . . . . . . . . . . . . . . . . . Robots Corrupted . | . . . . . . . . . . . . . . . . . Combat Hostiles . | . . . . . . . . . . . . . . . . . Parts Fried 2 | . . . 1 . . . . 1 . . . . . . . . Impact Corruptions . | . . . . . . . . . . . . . . . . . Robots Melted . | . . . . . . . . . . . . . . . . . Combat Hostiles . | . . . . . . . . . . . . . . . . . Parts Melted 1 | . . . 1 . . . . . . . . . . . . . Heat Transferred 322 | . 50 50 222 . . . . . . . . . . . . . Parts Sabotaged . | . . . . . . . . . . . . . . . . . Parts Stolen . | . . . . . . . . . . . . . . . . . Parts Stripped . | . . . . . . . . . . . . . . . . . Power Chain Reactions 2 | . 1 1 . . . . . . . . . . . . . . Missiles Intercepted . | . . . . . . . . . . . . . . . . . Alert | -11 -10 -10 -9 -9 -9 -8 -8 -8 -8 -7 -6 -5 -4 -3 -2 -1 ------- Run | Scr Mat Min Mat Min Exi Min Mat Gar Mat Fac Fac Fac Fac Res Res Acc Peak Influence 539 | 40 320 150 464 145 . 304 293 539 351 66 59 404 275 234 72 122 Average Influence 160 | 18 215 147 268 108 . 207 123 393 169 55 35 32 236 142 37 73 Maximum Alert Level 2 | . 1 . 2 . . 1 1 2 1 . . 2 1 1 . . Low Security (%) 63 | 100 36 100 36 100 . 26 69 7 53 100 100 93 24 72 100 100 Level 1 26 | . 63 . 48 . . 73 30 26 46 . . . 75 27 . . Level 2 9 | . . . 15 . . . . 66 . . . 6 . . . . Level 3 . | . . . . . . . . . . . . . . . . . Level 4 . | . . . . . . . . . . . . . . . . . Level 5 . | . . . . . . . . . . . . . . . . . High Security . | . . . . . . . . . . . . . . . . . Max Security . | . . . . . . . . . . . . . . . . . Squads Dispatched 14 | . 2 . 4 . . . 1 . 1 . . . 2 1 . 3 Investigation 5 | . 1 . 2 . . . . . 1 . . . . . . 1 Extermination 3 | . . . . . . . . . . . . . 1 1 . 1 Reinforcement 6 | . 1 . 2 . . . 1 . . . . . 1 . . 1 Assault . | . . . . . . . . . . . . . . . . . Garrison . | . . . . . . . . . . . . . . . . . Intercept . | . . . . . . . . . . . . . . . . . Construction Impeded . | . . . . . . . . . . . . . . . . . Haulers Reinforced . | . . . . . . . . . . . . . . . . . Stealth | -11 -10 -10 -9 -9 -9 -8 -8 -8 -8 -7 -6 -5 -4 -3 -2 -1 --------- Run | Scr Mat Min Mat Min Exi Min Mat Gar Mat Fac Fac Fac Fac Res Res Acc Distress Signals 5 | . 2 . 1 . . . 2 . . . . . . . . . Communications Jammed 11 | . . . . . . . . . . . . . . 11 . . Distress Signals 11 | . . . . . . . . . . . . . . 11 . . Times Spotted 147 | . 18 12 28 3 . 9 23 21 3 2 5 . 3 6 1 13 Peak Tracking Total 7 | . 7 6 4 3 . 5 6 4 2 1 4 . 1 4 . 5 Tactical Retreats 11 | . . 1 . . . 2 2 1 . . . . . 1 . 4 Traps | -11 -10 -10 -9 -9 -9 -8 -8 -8 -8 -7 -6 -5 -4 -3 -2 -1 ------- Run | Scr Mat Min Mat Min Exi Min Mat Gar Mat Fac Fac Fac Fac Res Res Acc Traps Triggered 4 | . . 1 1 . . . . 1 . 1 . . . . . . Indirectly . | . . . . . . . . . . . . . . . . . Trap Hack Attempts . | . . . . . . . . . . . . . . . . . Triggered . | . . . . . . . . . . . . . . . . . Disarmed . | . . . . . . . . . . . . . . . . . Reprogrammed 32 | . . . 4 . . . 6 . . . 12 4 . . 6 . Reused 9 | . . . 1 . . . 2 3 . . 1 1 . . 1 . Traps Extracted 3 | . . . 3 . . . . . . . . . . . . . Installed 3 | . . . . . . . . 3 . . . . . . . . Triggered 9 | . . . 1 . . . 2 3 . . 1 1 . . 1 . Machines | -11 -10 -10 -9 -9 -9 -8 -8 -8 -8 -7 -6 -5 -4 -3 -2 -1 ---------- Run | Scr Mat Min Mat Min Exi Min Mat Gar Mat Fac Fac Fac Fac Res Res Acc Machines Disabled 10 | . . . 3 1 . 1 1 3 . 1 . . . . . . Max in Single Turn 2 | . . . 2 . . 1 1 2 . 1 . . . . . . Garrison Access 6 | . . . . . . . . . . . 2 2 1 . . 1 Garrison Relay 1 | . . . . . . . . 1 . . . . . . . . Machines Sabotaged . | . . . . . . . . . . . . . . . . . Garrisons Compromised . | . . . . . . . . . . . . . . . . . Overloaded Fab Kills . | . . . . . . . . . . . . . . . . . Fab Network Shutdowns 1 | . . . . . . . . . . . . 1 . . . . Hacking | -11 -10 -10 -9 -9 -9 -8 -8 -8 -8 -7 -6 -5 -4 -3 -2 -1 --------- Run | Scr Mat Min Mat Min Exi Min Mat Gar Mat Fac Fac Fac Fac Res Res Acc Machines Accessed 56 | . 5 1 7 . 2 . 10 . 3 . 11 5 3 3 1 5 Terminals 31 | . 4 . 5 . . . 5 . 2 . 6 2 1 1 1 4 Fabricators 3 | . . . . . . . . . . . 2 1 . . . . Repair Stations 3 | . . . . . . . 2 . . . . . . 1 . . Recycling Units 5 | . 1 . 1 . . . 1 . . . 1 . . 1 . . Scanalyzers 4 | . . . 1 . . . 1 . 1 . . . 1 . . . Garrison Access 7 | . . . . . . . 1 . . . 2 2 1 . . 1 Total Hacks 172 | . 18 1 24 . 2 . 38 . 11 . 32 18 6 6 6 10 Successful 118 | . 8 1 15 . 2 . 27 . 6 . 24 14 5 6 6 4 Failed 54 | . 10 . 9 . . . 11 . 5 . 8 4 1 . . 6 Catastrophic 5 | . . . . . . . 3 . . . . . . . . 2 Database Lockouts . | . . . . . . . . . . . . . . . . . Manual 85 | . 15 . 9 . 1 . 16 . 6 . 17 7 2 2 3 7 Terminals 113 | . 15 . 18 . . . 22 . 8 . 21 9 2 3 6 9 Fabricators 15 | . . . . . . . . . . . 8 7 . . . . Repair Stations 6 | . . . . . . . 4 . . . . . . 2 . . Recycling Units 9 | . 3 . 2 . . . 2 . . . 1 . . 1 . . Scanalyzers 19 | . . . 4 . . . 9 . 3 . . . 3 . . . Garrison Access 7 | . . . . . . . 1 . . . 2 2 1 . . 1 Terminal Hacks 47 | . 5 1 8 . 2 . 6 . 3 . 9 4 1 2 5 1 Record 1 | . . . . . 1 . . . . . . . . . . . Part Schematic 1 | . . . . . . . . . . . 1 . . . . . Robot Schematic 2 | . . . . . . . . . . . 1 1 . . . . Robot Analysis 5 | . 2 . 2 . . . 1 . . . . . . . . . Prototype ID Bank 4 | . 3 . . . . . . . . . 1 . . . . . Open Door 2 | . . 1 . . . . . . . . . . . . . 1 Level Access Points 5 | . . . . . . . . . . . 1 1 1 1 1 . Machine Index 2 | . . . . . . . 1 . . . 1 . . . . . Terminal Index 1 | . . . . . . . . . . . . . . . 1 . Garrison Index 1 | . . . . . . . . . . . . . . . 1 . Unreport Threat 4 | . . . 1 . . . 1 . 2 . . . . . . . Locate Traps 1 | . . . . . . . 1 . . . . . . . . . Reprogram Traps 10 | . . . 2 . . . 1 . . . 3 2 . . 2 . Recall Investigation 1 | . . . 1 . . . . . . . . . . . . . Zone Layout 6 | . . . 2 . . . 1 . 1 . 1 . . 1 . . EX-Prototype ID Bank 1 | . . . . . 1 . . . . . . . . . . . Fabricator Hacks 9 | . . . . . . . . . . . 4 5 . . . . Load Schematic 2 | . . . . . . . . . . . 1 1 . . . . Build 7 | . . . . . . . . . . . 3 4 . . . . Repair Station Hacks 6 | . . . . . . . 4 . . . . . . 2 . . Scan Component 3 | . . . . . . . 2 . . . . . . 1 . . Repair 3 | . . . . . . . 2 . . . . . . 1 . . Recycling Unit Hacks 6 | . 1 . 2 . . . 1 . . . 1 . . 1 . . Retrieve Components 6 | . 1 . 2 . . . 1 . . . 1 . . 1 . . Scanalyzer 19 | . . . 4 . . . 9 . 3 . . . 3 . . . Insert Component 8 | . . . 2 . . . 4 . 1 . . . 1 . . . Analyze 11 | . . . 2 . . . 5 . 2 . . . 2 . . . Garrison Access Hacks 7 | . . . . . . . 1 . . . 2 2 1 . . 1 Unlock Access 1 | . . . . . . . 1 . . . . . . . . . Seal Access 6 | . . . . . . . . . . . 2 2 1 . . 1 Unauthorized Hacks 55 | . 5 . 2 . . . 14 . . . 18 6 . 2 2 6 Terminals 17 | . 1 . 1 . . . 6 . . . 4 1 . 1 1 2 Track 3 | . . . . . . . 2 . . . 1 . . . . . Assimilate 4 | . . . . . . . 1 . . . 1 . . 1 . 1 Botnet 9 | . 1 . 1 . . . 2 . . . 2 1 . . 1 1 Disrupt 1 | . . . . . . . 1 . . . . . . . . . Fabricators 6 | . . . . . . . . . . . 4 2 . . . . Prioritize 3 | . . . . . . . . . . . 2 1 . . . . Siphon 3 | . . . . . . . . . . . 2 1 . . . . Repair Stations . | . . . . . . . . . . . . . . . . . Recycling Units 1 | . 1 . . . . . . . . . . . . . . . Tunnel 1 | . 1 . . . . . . . . . . . . . . . Scanalyzers . | . . . . . . . . . . . . . . . . . Garrison Access . | . . . . . . . . . . . . . . . . . Data Cores Recovered . | . . . . . . . . . . . . . . . . . Used . | . . . . . . . . . . . . . . . . . Hacking Detections 38 | . 5 . 5 . . . 9 . 3 . 6 3 1 2 . 4 Full Trace Events 5 | . . . 1 . . . 2 . 1 . . . . . . 1 Feedback Events 2 | . . . . . . . 1 . . . . . . . . 1 Corruption 1 | . . . . . . . 1 . . . . . . . . . Hackware Fried 1 | . . . . . . . . . . . . . . . . 1 Feedback Blocked . | . . . . . . . . . . . . . . . . . Robot Schematics Acquired 2 | . . . . . . . . . . . 1 1 . . . . Robots Built . | . . . . . . . . . . . . . . . . . Matter . | . . . . . . . . . . . . . . . . . Time . | . . . . . . . . . . . . . . . . . Total Robot Build Rating . | . . . . . . . . . . . . . . . . . Part Schematics Acquired 9 | . . . 2 . . . 4 . 1 . 1 . 1 . . . Parts Built 8 | . . . . . . . . . . . 4 4 . . . . Matter 996 | . . . . . . . . . . . 360 636 . . . . Time 453 | . . . . . . . . . . . 241 212 . . . . Total Part Build Rating 40 | . . . . . . . . . . . 16 24 . . . . Parts Repaired 3 | . . . . . . . 2 . . . . . . 1 . . Time 114 | . . . . . . . 89 . . . . . . 25 . . Parts Recycled . | . . . . . . . . . . . . . . . . . Recycled Matter . | . . . . . . . . . . . . . . . . . Retrieved Matter . | . . . . . . . . . . . . . . . . . Retrieved Components 7 | . 2 . . . . . . . . . 3 . . 2 . . Parts Scanalyzed 8 | . . . 2 . . . 4 . 1 . . . 1 . . . Part Schematics Acquired 8 | . . . 2 . . . 4 . 1 . . . 1 . . . Parts Damaged 1 | . . . . . . . 1 . . . . . . . . . Bothacking | -11 -10 -10 -9 -9 -9 -8 -8 -8 -8 -7 -6 -5 -4 -3 -2 -1 ------------ Run | Scr Mat Min Mat Min Exi Min Mat Gar Mat Fac Fac Fac Fac Res Res Acc Used RIF Installer 1 | . . . . . . . . 1 . . . . . . . . Robots Hacked 2 | . . . . . . . . . . . 1 . . . . 1 Non-combat 2 | . . . . . . . . . . . 1 . . . . 1 Combat . | . . . . . . . . . . . . . . . . . Robot Hacks Applied 2 | . . . . . . . . . . . 1 . . . . 1 find_chute 1 | . . . . . . . . . . . 1 . . . . . map_route 1 | . . . . . . . . . . . . . . . . 1 Relay Couplers Released 5 | . . . . . . . . 5 . . . . . . . . Machine Destruction 5 | . . . . . . . . 5 . . . . . . . . Attached 1 | . . . . . . . . . . . . . . . . 1 Robots Rewired . | . . . . . . . . . . . . . . . . . Allies Hacked . | . . . . . . . . . . . . . . . . . Hacks Repelled . | . . . . . . . . . . . . . . . . . Allies | -11 -10 -10 -9 -9 -9 -8 -8 -8 -8 -7 -6 -5 -4 -3 -2 -1 -------- Run | Scr Mat Min Mat Min Exi Min Mat Gar Mat Fac Fac Fac Fac Res Res Acc Total Allies 4 | . . . . 1 . . 1 . . . 1 . . . . 1 Largest Group 1 | . . . . 1 . . 1 1 1 1 1 1 1 . . 1 Highest-Rated Group 44 | . . . . 31 . . 10 10 10 10 10 10 10 . . 44 Highest-Rated Ally 44 | . . . . 31 . . 10 10 10 10 10 10 10 . . 44 Total Orders 13 | . . . . . . . 2 5 . 2 . 2 . . . 2 STAY 1 | . . . . . . . . . . 1 . . . . . . GOTO 6 | . . . . . . . 1 3 . . . 1 . . . 1 FOLLOW 6 | . . . . . . . 1 2 . 1 . 1 . . . 1 Ally Attacks 7 | . . . . 7 . . . . . . . . . . . . Total Damage 65 | . . . . 65 . . . . . . . . . . . . Kills 2 | . . . . 2 . . . . . . . . . . . . Allies Corrupted . | . . . . . . . . . . . . . . . . . Allies Melted . | . . . . . . . . . . . . . . . . . Intel | -11 -10 -10 -9 -9 -9 -8 -8 -8 -8 -7 -6 -5 -4 -3 -2 -1 ------- Run | Scr Mat Min Mat Min Exi Min Mat Gar Mat Fac Fac Fac Fac Res Res Acc Robot Analysis Total 5 | . 2 . 2 . . . 1 . . . . . . . . . Derelict Logs Recovered . | . . . . . . . . . . . . . . . . . Drone Launches . | . . . . . . . . . . . . . . . . . Drone Recoveries . | . . . . . . . . . . . . . . . . . Exploration | -11 -10 -10 -9 -9 -9 -8 -8 -8 -8 -7 -6 -5 -4 -3 -2 -1 ------------- Run | Scr Mat Min Mat Min Exi Min Mat Gar Mat Fac Fac Fac Fac Res Res Acc Turns Passed 7941 | 219 391 221 943 252 312 405 881 860 196 182 873 749 332 541 108 476 Spaces Moved 6394 | 129 237 152 560 172 250 245 547 551 240 195 856 660 297 531 42 730 Core 2 | 2 . . . . . . . . . . . . . . . . Treads . | . . . . . . . . . . . . . . . . . Legs . | . . . . . . . . . . . . . . . . . Wheels 2665 | 127 237 152 560 172 250 245 547 375 . . . . . . . . Hover 3076 | . . . . . . . . 176 240 195 856 660 297 531 42 79 Flight 651 | . . . . . . . . . . . . . . . . 651 Fastest Speed 40 | 50 100 120 120 130 120 120 125 72 72 76 80 80 80 80 80 40 Average Speed 95 | 99 114 120 127 130 120 129 125 128 72 77 80 80 80 80 80 44 Slowest Speed 170 | 100 120 120 170 130 130 130 130 166 72 146 150 80 80 80 80 80 Overloaded Moves . | . . . . . . . . . . . . . . . . . Propulsion Burnouts . | . . . . . . . . . . . . . . . . . Robots Hopped 1 | . . . . . . . . . . . . . . . . 1 Cave-ins Triggered . | . . . . . . . . . . . . . . . . . Exploration Rate (%) 30 | 6 35 25 53 34 62 67 43 60 31 4 23 18 12 18 2 23 Regions Visited 16 Branch Regions 4 Pre-discovered Areas 2 | . 1 . . . 1 . . . . . . . . . . . Known Exits Taken 6 | . . . . . . . 1 . . . 1 1 1 1 1 . Unknown Exits Taken 9 | 1 1 1 1 1 1 1 . . 1 1 . . . . . . Scrap Searched 3 | . . 1 . . . 2 . . . . . . . . . . Spaces Dug 83 | . . . . . . . . . . 2 19 10 14 19 3 16 Terrain Destroyed 196 | . 6 8 1 . . 37 29 7 25 2 19 10 14 19 3 16 Melee 83 | . . . . . . . . . . 2 19 10 14 19 3 16 Projectile . | . . . . . . . . . . . . . . . . . AOE 113 | . 6 8 1 . . 37 29 7 25 . . . . . . . Actions | -11 -10 -10 -9 -9 -9 -8 -8 -8 -8 -7 -6 -5 -4 -3 -2 -1 --------- Run | Scr Mat Min Mat Min Exi Min Mat Gar Mat Fac Fac Fac Fac Res Res Acc Total 7730 | 182 321 183 696 198 265 300 689 656 255 218 1002 865 358 592 111 839 Wait 740 | 23 47 12 21 20 . 29 81 17 3 9 99 187 32 21 67 72 Move 6376 | 128 236 151 559 171 249 244 547 550 239 194 855 659 296 530 41 727 Hop 1 | . . . . . . . . . . . . . . . . 1 Pick Up 75 | . 12 10 10 3 5 3 11 9 . 1 3 2 3 2 . 1 Fast Attach 68 | 17 5 3 15 . . 1 3 7 4 3 7 1 1 1 . . Attach 14 | . . 2 1 . . 4 . 4 . . . . 1 1 . 1 Detach 16 | . 2 1 4 . . . . 6 1 . 2 . . . . . Swap 46 | . . . 13 1 2 4 9 7 1 . . 3 1 . . 5 Drop 100 | . 3 1 27 2 9 . 13 18 3 5 9 3 2 1 . 4 Fire 145 | 14 16 3 46 1 . 15 25 22 2 . . . . . . 1 Melee 141 | . . . . . . . . 8 2 6 27 10 22 36 3 27 Ram . | . . . . . . . . . . . . . . . . . Kick . | . . . . . . . . . . . . . . . . . Crush . | . . . . . . . . . . . . . . . . . Escape Stasis 5 | . . . . . . . . 5 . . . . . . . . Rewire . | . . . . . . . . . . . . . . . . . Trap 3 | . . . . . . . . 3 . . . . . . . . Miscellaneous . | . . . . . . . . . . . . . . . . . Route ------- -11/Scrapyard -10/Materials -10/Mines -9/Materials (discovered 3 exits: *Mat x2 / [*Min]) -9/Mines (discovered 3 exits: *Mat / *Exi / [*Zio]) -9/Exiles -8/Mines -8/Materials (discovered 2 exits: *Fac / Gar) -8/Garrison (discovered 2 exits: *Mat x2) -8/Materials -7/Factory -6/Factory (discovered 5 exits: *Fac x4 / [*Ext]) -5/Factory (discovered 4 exits: *Fac x4) -4/Factory (discovered 4 exits: *Res x4) -3/Research (discovered 3 exits: *Res x3) -2/Research (discovered 3 exits: *Acc x3) -1/Access To Epsilon Eridani History --------- Turn | Location | Event 19 | -11/Scrapyard | Discovered new exit (range 15) 220 | -11/Scrapyard | Entered Materials 321 | -10/Materials | Build established: Scavenger-Skirmisher 391 | -10/Materials | Discovered new exit (range 16) 611 | -10/Materials | Entered Mines 652 | -10/Mines | A weapon hastily lodged in a ceiling crevice suddenly fell to the ground 661 | -10/Mines | Lost 4 parts (1p1n1u1w) 696 | -10/Mines | Assembled infested the area 772 | -10/Mines | Discovered new exit (range 9) 787 | -10/Mines | Met a Derelict who couldn't figure out how to use a Trap Extractor 832 | -10/Mines | Entered Materials 832 | -9/Materials | Devolved, losing 1 slot: Propulsion x-1 1122 | -9/Materials | Discovered new exit (range 16) 1303 | -9/Materials | Discovered new exit (range 12) 1442 | -9/Materials | Build established: Scavenger-Gunner 1457 | -9/Materials | Discovered new exit (range 16) 1775 | -9/Materials | Entered Mines 1785 | -9/Mines | Received a Mining Laser from a helpful Derelict 1814 | -9/Mines | Build established: Hauler-Gunner 1824 | -9/Mines | Received a Rocket Launcher from a helpful Derelict 1902 | -9/Mines | Discovered new exit (range 10) 1971 | -9/Mines | A Derelict revealed a hidden shortcut to a safe place 2020 | -9/Mines | Deemed a non-threat by the Exiles lab entrance 2022 | -9/Mines | Discovered new exit (range 5) 2027 | -9/Mines | Entered Exiles 2079 | -9/Exiles | Met 8R-AWN 2095 | -9/Exiles | Met EX-HEX 2146 | -9/Exiles | Met EX-DEC 2151 | -9/Exiles | Learned location of Zion (-7) 2173 | -9/Exiles | Met EX-BIN 2190 | -9/Exiles | Aligned with FarCom system 2191 | -9/Exiles | Given EX-Vault access code 2219 | -9/Exiles | Opened EX-Vault 2226 | -9/Exiles | Found Latent Energy Streamer 2251 | -9/Exiles | Warned to stay clear of 0b10 Research branches 2270 | -9/Exiles | Exiles lab attacked by MAIN.C 2327 | -9/Exiles | Discovered new exit (range 11) 2339 | -9/Exiles | Left Exiles lab with Latent Energy Streamer 2339 | -9/Exiles | Entered Mines 2340 | -8/Mines | Build established: Hauler-Mutant 2738 | -8/Mines | Discovered new exit (range 6) 2744 | -8/Mines | Entered Materials 2744 | -8/Materials | Devolved, losing 1 slot: Weapon x-1 2822 | -8/Materials | Build established: Hauler-Gunner 3176 | -8/Materials | Discovered new exit (range 16) 3491 | -8/Materials | Repaired Imp. Propulsion Shielding? 3538 | -8/Materials | Repaired Cld. Ion Engine? 3625 | -8/Materials | Identified exit to Garrison 3625 | -8/Materials | Entered Garrison 3625 | -8/Garrison | Accompanied by 1 ally 3677 | -8/Garrison | Triggered checkpoint 3690 | -8/Garrison | Triggered checkpoint 3714 | -8/Garrison | Destroyed 8 combat bots 3746 | -8/Garrison | Discovered new exit (range 13) 3911 | -8/Garrison | Triggered checkpoint 3944 | -8/Garrison | Discovered new exit (range 15) 3969 | -8/Garrison | Installed Relay Interface Framework 4218 | -8/Garrison | Triggered checkpoint 4358 | -8/Garrison | Garrison Relay disabled 4485 | -8/Garrison | Entered Materials 4485 | -8/Materials | Accompanied by 1 ally 4595 | -8/Materials | Discovered new exit (range 16) 4653 | -8/Materials | Build established: Scavenger-Mutant 4681 | -8/Materials | Entered Factory 4681 | -7/Factory | Accompanied by 1 ally 4681 | -7/Factory | Devolved, losing 1 slot: Propulsion x-1 4849 | -7/Factory | Discovered new exit (range 15) 4863 | -7/Factory | Entered another Factory area 4863 | -6/Factory | Accompanied by 1 ally 4863 | -6/Factory | Devolved, losing 1 slot: Propulsion x-1 4969 | -6/Factory | Fabricated Hacking Suite? 5024 | -6/Factory | Build established: Hacker-Mutant 5040 | -6/Factory | Fabricated Hacking Suite (x1) 5132 | -6/Factory | Identified exit to Factory 5329 | -6/Factory | Discovered new exit (range 13) 5619 | -6/Factory | Fabricated Power Sword (x2) 5736 | -6/Factory | Entered another Factory area 5736 | -5/Factory | Accompanied by 1 ally 5736 | -5/Factory | Devolved, losing 1 slot: Utility x-1 5889 | -5/Factory | Identified exit to Factory 6119 | -5/Factory | Fabricated Adv. Hacking Suite? 6249 | -5/Factory | Fabricated Adv. Hacking Suite (x1) 6304 | -5/Factory | Fabricated Adv. Hacking Suite (x1) 6362 | -5/Factory | Fabricated Adv. Hacking Suite (x1) 6438 | -5/Factory | Local fabrication network quarantined 6485 | -5/Factory | Entered another Factory area 6485 | -4/Factory | Accompanied by 1 ally 6485 | -4/Factory | Devolved, losing 1 slot: Weapon x-1 6663 | -4/Factory | Identified exit to Research 6817 | -4/Factory | Entered Research 6817 | -3/Research | Devolved, losing 1 slot: Power x-1 6849 | -3/Research | Repaired Power Sword 6941 | -3/Research | Build established: Wizard-Mutant 7244 | -3/Research | Identified exit to Research 7358 | -3/Research | Entered another Research area 7358 | -2/Research | Devolved, losing 1 slot: Weapon x-1 7364 | -2/Research | Identified exit to Access 7466 | -2/Research | Entered Access 7466 | -1/Access | Devolved, losing 1 slot: Utility x-1 7576 | -1/Access | Adv. Hacking Suite fried by hacking feedback 7775 | -1/Access | Build established: Hacker-Mutant 7940 | -1/Access | Discovered new exit (range 6) 7942 | *** | Escaped! Last Messages --------------- 07716_ ALERT: Rogue bot located, Programmers report to Access Zone 9P. 07850_ Power Sword destroyed. 07862_ Connecting with Terminal... >>Trojan(Botnet) Trojan loaded successfully. Testing... Terminal linked with 0 systems. Awaiting botnet instructions. 07895_ Detecting nearby Garrison Access. 07904_ K-01 Serf cleans the Sealed Freight Elevator. 07905_ Connecting with Garrison Access... >>Seal Access door sealed. 07906_ K-01 Serf cleans the Sealed Freight Elevator. 07939_ Connecting with Terminal... >>Open Sealed Barrier opened. 07940_ The Access Shell folds into the floor. 07940_ EXIT=FOUND [Achievement: Grand Amoeba] Map ----- +----------------------------------------------------+ | ??????????? ????????????????????????????????????? | | ??????????? ????????????????????????????????????? | | ??????????# #???????????????????????????????????? | | ??????????# #???????????????????????????????????? | | ?########## #????#######????????????????????????? | | ?? # #???? ???????????????????????? | | ?? # #??? ????????????????????????? | | # #??? " ????????????????????????? | | "" # #?? """????????????????????????? | | "" # #?? """???????????????????????? | | """""" # #? " #??????????????????????? | | """""" # #? #??????????????????????? | | "" # # #??????????????????????? | | "" # # #??????????????Y???????? | | + + #??????????????????????? | | # # #??????????????????????? | | =# # ] #??????????????????????? | | ###+####### #?############??????????????????????? | | ??# #?????# #?????###???????????????????????????? | | ??# #?????# ####### ##########??????????????????? | | ??# #?????# """T""" "??????????????????? | | ### #?????# """ """ "????BB????????????? | | #?????# "????BB????????????? | | #?????# "??????????????????? | | #?????# "" "??????????????????? | | #??#### @" "??????????????????? | | #?? # A "??????????????????? | | #? # "????BB????????????? | | #? # "????BB????????????? | | # # "??????????????????? | | # ! # ####### ##########??????????????????? | | + # #?????###???????????????????????????? | | ### # # ############????????????????????????? | | ??# # # ## ???????????????????????? | | ??# #? # ## ????????????????????????? | | ??# #? #g ## """"""" ??#???????????????????? | | ??# #?? #g ## """"""" #???????????????????? | | ??# #?? # ## ??????????????????????? | | ??# #???### ## ??????????????????????????? | | # ###### ###++##########????????????????????? | | + #????????????????????? | | # #????????????????????? | | ??######## # #????????????????????? | | ?????????###### = = #????????????????????? | | ???????????#### #????????????????????? | | ???????????# "" #????????????????????? | | ???????????#""" ######???????????????? | | ???????????#"R ???????????????? | | ???????????#""" ????????????????? | | ???????????#""" ????????????????? | +----------------------------------------------------+ Best States ------------- Heat Dissipation 56 Energy Generation 36 Energy Capacity 650 Matter Stores 300 Matter Capacity 300 Sight Range 16 Terrain Scan Range 16 Terrain Scan Density 160 Jamming Range 12 Armor Coverage 600 Propulsion Shielding 66 Utility Shielding 33 Evasion (%) 62 Targeting Accuracy 18 Melee Accuracy 5 Recoil Reduction 2 Offensive Hacking 56 Defensive Hacking 12 Item Schematics ----------------- Imp. Flight Unit | -9/Materials | Scanalyzed Beamcaster | -9/Materials | Scanalyzed Hacking Suite | -8/Materials | Scanalyzed Remote Datajack | -8/Materials | Scanalyzed Med. Storage Unit | -8/Materials | Scanalyzed Katana | -8/Materials | Scanalyzed Cmb. Airjet | -8/Materials | Scanalyzed Adv. Hacking Suite | -6/Factory | Hacked Mic. Fission Core | -4/Factory | Scanalyzed Robot Schematics ------------------ G-50 Soldier | -6/Factory | Hacked H-66 Slayer | -5/Factory | Hacked Fabricated ------------ Hacking Suite | x1 | -6/Factory Hacking Suite | x1 | -6/Factory Power Sword | x2 | -6/Factory | Preloaded Adv. Hacking Suite | x1 | -5/Factory Adv. Hacking Suite | x1 | -5/Factory Adv. Hacking Suite | x1 | -5/Factory Adv. Hacking Suite | x1 | -5/Factory Alien Tech Used ----------------- None Achievements -------------- Grand Amoeba Challenges ------------ Devolution Game ------ Seed AssembledImpactTearclaws Manual? 0 Play Time 01:09:58 Cumulative 468.8 hours Start 2020.03.14 @ 11:10:31 End 2020.03.14 @ 12:26:37 Sessions 1 Manual Loads 0 Difficulty Rogue Special Mode None Game No. 366 Rogue 362 Adventurer 4 Explorer 0 Win Type 0 Total 53 Types 45/3/1/2/2/0/0 Lore% 93 Gallery% 95 Achievement% 95 Wizard Run 0 Options --------- ASCII 0 Keyboard 0 Movement Vi Keybinds 0 Fullscreen 0 Font 16/Terminus Map View 76x50 Tactical HUD 1 Map Filters NONE Filters NONE Steam 1 RUN: eaa83e83-a398-4b9c-8d31-10b2f4db46ce